bitfinex/quotes_SOLUSD_20241208
["timestamp","ask_amount","ask_price","bid_price","bid_amount"]
[1733639946021,23.776884,238.33,238.32,0.12549]
[1733639951321,8.15926729,238.34,238.32,0.12549]
[1733639951530,8.15926729,238.34,238.3,0.25098]
[1733639956022,8.15926729,238.35,238.3,0.25098]
[1733639956219,8.28475729,238.37,238.3,8.41024729]
[1733639956532,8.28475729,238.37,238.32,0.25098]
[1733639958610,8.15926729,238.36,238.32,0.25098]
[1733639961435,8.15926729,238.35,238.31,0.12549]
[1733639963463,8.15926729,238.35,238.32,0.12549]
[1733639963729,8.15926729,238.36,238.32,0.12549]
[1733639965346,0.12549,238.37,238.32,0.12549]
[1733639965532,23.776884,238.43,238.34,0.25098]
[1733639965731,10.4848,238.44,238.39,0.25098]
[1733639965939,8.15926729,238.41,238.39,0.12549]
[1733639966825,8.15926729,238.4,238.35,4.99997218]
[1733639967026,8.15926729,238.4,238.36,0.12549]
[1733639967932,8.15926729,238.41,238.36,0.12549]
[1733639968659,10.4848,238.44,238.4,0.12549]
[1733639969630,10.4832,238.48,238.43,0.12549]
[1733639969836,8.15926729,238.47,238.43,0.12549]
[1733639970041,8.15926729,238.46,238.43,0.12549]
[1733639970244,8.15926729,238.45,238.43,0.12549]
[1733639970445,8.15926729,238.45,238.41,0.25098]
[1733639975434,8.15926729,238.43,238.38,4.99997218]
[1733639976040,8.15926729,238.43,238.39,0.12549]
[1733639976764,8.15926729,238.44,238.39,0.25098]
[1733639977863,10.4844,238.45,238.39,0.25098]
[1733639978066,18.64366729,238.45,238.39,0.25098]
[1733639980466,8.15926729,238.44,238.39,0.25098]
[1733639980840,8.15926729,238.43,238.39,0.25098]
[1733639982038,8.15926729,238.43,238.39,0.12549]
[1733639983669,8.15926729,238.4,238.34,4.99997218]
[1733639983836,8.15926729,238.39,238.34,4.99997218]
[1733639984036,8.15926729,238.39,238.35,0.12549]
[1733639984567,8.15926729,238.37,238.32,4.99997218]
[1733639985469,8.15926729,238.36,238.32,4.99997218]
[1733639985756,8.15926729,238.36,238.33,0.12549]
[1733639985963,8.15926729,238.34,238.31,0.25098]
[1733639986174,8.15926729,238.34,238.3,4.99997218]
[1733639986677,8.15926729,238.35,238.31,0.12549]
[1733639986973,8.15926729,238.37,238.31,0.12549]
[1733639987658,8.15926729,238.37,238.31,0.25098]
[1733639990054,8.15926729,238.36,238.31,0.25098]
[1733639990752,0.12549,238.38,238.31,0.25098]
[1733639990951,8.15926729,238.36,238.31,0.25098]
[1733639995674,8.15926729,238.35,238.31,0.25098]
[1733639997869,0.12549,238.38,238.31,0.25098]
[1733639998055,8.15926729,238.37,238.31,0.25098]
[1733639998377,8.15926729,238.36,238.31,0.25098]
[1733640000773,0.12549,238.38,238.31,0.25098]
[1733640000955,8.15926729,238.37,238.31,0.25098]
[1733640001157,8.15926729,238.36,238.31,0.25098]
[1733640005075,8.15926729,238.35,238.31,0.12549]
[1733640006179,0.12549,238.38,238.31,0.12549]
[1733640006375,8.15926729,238.38,238.34,0.12549]
[1733640006543,10.4856,238.43,238.36,0.12549]
[1733640006748,8.15926729,238.42,238.36,0.12549]
[1733640007566,10.4838,238.47,238.39,0.12549]
[1733640007768,8.15926729,238.45,238.39,0.12549]
[1733640007965,10.4838,238.47,238.39,0.12549]
[1733640008148,8.15926729,238.45,238.39,0.12549]
[1733640008676,10.4818,238.51,238.43,0.12549]
[1733640008885,8.15926729,238.48,238.43,0.12549]
[1733640009455,8.15926729,238.49,238.43,0.12549]
[1733640009782,10.4818,238.51,238.43,0.12549]
[1733640009783,8.15926729,238.48,238.43,0.12549]
[1733640010166,10.4818,238.51,238.46,0.12549]
[1733640010478,8.15926729,238.49,238.46,0.12549]
[1733640011162,10.4802,238.55,238.48,0.12549]
[1733640011366,8.15926729,238.52,238.48,0.12549]
[1733640011566,8.15926729,238.51,238.48,0.12549]
[1733640013282,8.15926729,238.52,238.48,0.12549]
[1733640013678,10.4782,238.59,238.5,0.12549]
[1733640013896,8.15926729,238.55,238.5,0.12549]
[1733640014691,8.15926729,238.55,238.52,0.12549]
[1733640014877,10.4782,238.59,238.53,4.99997218]
[1733640015079,8.15926729,238.54,238.5,6.57227218]
[1733640015595,8.15926729,238.54,238.51,0.12549]
[1733640015772,8.15926729,238.53,238.51,0.12549]
[1733640015974,8.15926729,238.52,238.5,1.5723]
[1733640016275,8.15926729,238.51,238.5,1.5723]
[1733640016676,8.28475729,238.51,238.46,4.99997218]
[1733640016883,8.15926729,238.49,238.46,4.99997218]
[1733640017389,8.15926729,238.5,238.46,4.99997218]
[1733640018387,0.12549,238.51,238.46,4.99997218]
[1733640018565,8.15926729,238.5,238.46,4.99997218]
[1733640019464,8.15926729,238.52,238.47,0.12549]
[1733640021297,0.12549,238.54,238.47,0.12549]
[1733640021471,8.15926729,238.51,238.47,0.12549]
[1733640024068,8.15926729,238.52,238.47,0.12549]
[1733640024478,0.12549,238.54,238.47,0.12549]
[1733640024677,8.15926729,238.52,238.47,0.12549]
[1733640026783,0.12549,238.54,238.47,0.12549]
[1733640027369,8.15926729,238.52,238.47,0.12549]
[1733640031584,8.15926729,238.51,238.47,0.12549]
[1733640032709,8.15926729,238.52,238.47,0.12549]
[1733640033403,20.0,238.58,238.52,0.12549]
[1733640033575,8.15926729,238.57,238.54,0.12549]
[1733640034604,8.15926729,238.56,238.54,0.12549]
[1733640034914,8.15926729,238.56,238.52,0.12549]
[1733640035199,8.15926729,238.55,238.52,0.12549]
[1733640035504,8.15926729,238.54,238.52,0.12549]
[1733640038398,10.60419,238.58,238.52,0.12549]
[1733640038580,8.15926729,238.55,238.52,0.12549]
[1733640040089,8.15926729,238.57,238.52,0.12549]
[1733640040403,8.15926729,238.57,238.54,4.99997218]
[1733640040599,8.15926729,238.58,238.54,4.99997218]
[1733640041597,8.15926729,238.57,238.54,4.99997218]
[1733640043981,8.15926729,238.56,238.54,4.99997218]
[1733640045507,8.15926729,238.56,238.52,5.12546218]
[1733640047107,8.15926729,238.56,238.54,4.99997218]
[1733640049115,8.15926729,238.55,238.52,0.12549]
[1733640049412,8.15926729,238.54,238.52,0.12549]
[1733640049717,8.15926729,238.53,238.5,0.12549]
[1733640049920,8.15926729,238.51,238.48,0.12549]
[1733640050286,8.15926729,238.51,238.47,4.99997218]
[1733640050491,8.15926729,238.5,238.47,4.99997218]
[1733640054704,8.15926729,238.51,238.47,4.99997218]
[1733640056799,0.12549,238.54,238.47,4.99997218]
[1733640057005,8.15926729,238.51,238.47,4.99997218]
[1733640058097,8.15926729,238.5,238.47,4.99997218]
[1733640068517,8.15926729,238.49,238.47,4.99997218]
[1733640068710,8.15926729,238.49,238.37,4.99990839]
[1733640068711,8.15926729,238.48,238.4,6.53167218]
[1733640068907,8.15926729,238.44,238.4,6.53167218]
[1733640072115,8.15926729,238.44,238.4,1.5317]
[1733640072715,8.15926729,238.44,238.4,6.53167218]
[1733640073646,0.12549,238.48,238.42,4.99997218]
[1733640073822,20.9611,238.54,238.44,4.99997218]
[1733640073823,8.15926729,238.5,238.44,4.99997218]
[1733640074018,10.4804,238.54,238.48,4.99997218]
[1733640074248,18.63966729,238.54,238.48,4.99997218]
[1733640075016,1.67246386,238.61,238.48,4.99997218]
[1733640075017,0.25098,238.59,238.48,4.99997218]
[1733640075254,8.15926729,238.54,238.48,4.99997218]
[1733640076446,8.15926729,238.53,238.48,4.99997218]
[1733640076622,8.15926729,238.52,238.48,4.99997218]
[1733640076827,8.15926729,238.5,238.46,4.99997218]
[1733640077022,0.12549,238.55,238.44,4.99997218]
[1733640077023,8.15926729,238.49,238.44,4.99997218]
[1733640077230,8.15926729,238.49,238.46,4.99997218]
[1733640081073,8.15926729,238.49,238.44,4.99997218]
[1733640081661,8.15926729,238.49,238.46,4.99997218]
[1733640081951,0.12549,238.52,238.46,4.99997218]
[1733640082138,8.15926729,238.5,238.46,4.99997218]
[1733640083646,8.15926729,238.52,238.48,4.99997218]
[1733640083858,8.15926729,238.53,238.48,4.99997218]
[1733640084358,8.15926729,238.52,238.48,4.99997218]
[1733640085238,8.15926729,238.53,238.5,4.99997218]
[1733640085441,8.15926729,238.54,238.5,4.99997218]
[1733640086165,10.4797,238.56,238.5,4.99997218]
[1733640086330,8.15926729,238.54,238.52,4.99997218]
[1733640086531,8.15926729,238.55,238.52,4.99997218]
[1733640090444,8.15926729,238.53,238.49,4.99997218]
[1733640093438,8.15926729,238.52,238.49,4.99997218]
[1733640095940,8.15926729,238.65,238.61,4.99997218]
[1733640097262,10.4753,238.66,238.59,4.99997218]
[1733640097263,8.15926729,238.63,238.59,4.99997218]
[1733640098351,8.15926729,238.63,238.61,4.99997218]
[1733640098544,8.15926729,238.64,238.61,4.99997218]
[1733640105066,8.15926729,238.63,238.59,4.99997218]
[1733640105455,8.15926729,238.63,238.61,4.99997218]
[1733640107356,8.15926729,238.63,238.59,4.99997218]
[1733640107682,8.15926729,238.6,238.57,6.62707218]
[1733640108078,8.15926729,238.59,238.57,6.62707218]
[1733640108262,8.15926729,238.58,238.57,1.6271]
[1733640108457,8.15926729,238.58,238.55,4.99997218]
[1733640111276,8.15926729,238.58,238.57,4.99997218]
[1733640111464,8.15926729,238.6,238.57,4.99997218]
[1733640112654,10.476,238.64,238.6,4.99997218]
[1733640112852,8.15926729,238.63,238.6,4.99997218]
[1733640113056,8.15926729,238.62,238.6,4.99997218]
[1733640113453,8.15926729,238.63,238.6,4.99997218]
[1733640115363,8.15926729,238.62,238.6,4.99997218]
[1733640116156,24.027864,238.68,238.6,4.99997218]
[1733640116381,10.4738,238.69,238.62,4.99997218]
[1733640116566,8.15926729,238.66,238.62,4.99997218]
[1733640118059,8.15926729,238.71,238.67,4.99997218]
[1733640118617,8.64591729,238.7,238.67,4.99997218]
[1733640119370,8.15926729,238.68,238.63,1.5702]
[1733640119567,8.15926729,238.64,238.62,4.99997218]
[1733640119767,8.15926729,238.63,238.62,4.99997218]
[1733640120161,8.15926729,238.64,238.62,4.99997218]
[1733640120689,10.4747,238.67,238.62,4.99997218]
[1733640120987,8.15926729,238.63,238.62,4.99997218]
[1733640122885,8.15926729,238.65,238.62,4.99997218]
[1733640124300,10.4747,238.67,238.62,4.99997218]
[1733640124585,8.15926729,238.65,238.62,4.99997218]
[1733640125664,10.4747,238.67,238.62,4.99997218]
[1733640126063,8.15926729,238.66,238.62,4.99997218]
[1733640126785,0.48665,238.7,238.67,4.99997218]
[1733640126960,0.48665,238.7,238.69,4.99997218]
[1733640130975,1.69484775,238.81,238.69,4.99997218]
[1733640130976,10.4669,238.85,238.79,4.99997218]
[1733640131178,8.15926729,238.81,238.79,4.99997218]
[1733640131389,8.15926729,238.8,238.75,4.99997218]
[1733640131583,8.15926729,238.77,238.75,4.99997218]
[1733640132683,8.15926729,238.76,238.73,4.99997218]
[1733640132991,8.15926729,238.75,238.73,4.99997218]
[1733640133395,8.15926729,238.74,238.73,4.99997218]
[1733640134099,8.15926729,238.75,238.73,4.99997218]
[1733640135099,8.15926729,238.76,238.73,4.99997218]
[1733640135394,8.15926729,238.78,238.75,4.99997218]
[1733640135698,8.15926729,238.79,238.75,4.99997218]
[1733640136094,23.776884,238.85,238.75,4.99997218]
[1733640136276,8.15926729,238.8,238.77,4.99997218]
[1733640138278,8.15926729,238.81,238.77,4.99997218]
[1733640139281,8.15926729,238.8,238.77,4.99997218]
[1733640139489,8.15926729,238.79,238.75,4.99997218]
[1733640139776,8.15926729,238.78,238.75,4.99997218]
[1733640140373,8.15926729,238.77,238.73,4.99997218]
[1733640140595,8.15926729,238.76,238.71,4.99997218]
[1733640140898,8.15926729,238.76,238.73,4.99997218]
[1733640141813,8.15926729,238.75,238.71,4.99997218]
[1733640142105,23.776884,238.79,238.71,4.99997218]
[1733640142310,8.15926729,238.75,238.71,4.99997218]
[1733640143102,8.15926729,238.75,238.73,4.99997218]
[1733640144398,8.15926729,238.75,238.71,4.99997218]
[1733640145407,8.15926729,238.74,238.7,1.5702]
[1733640145598,8.15926729,238.73,238.7,1.5702]
[1733640146205,8.15926729,238.73,238.69,4.99997218]
[1733640149191,23.776884,238.76,238.69,4.99997218]
[1733640149391,8.15926729,238.73,238.69,4.99997218]
[1733640149893,8.15926729,238.72,238.69,4.99997218]
[1733640150410,8.15926729,238.72,238.67,4.99997218]
[1733640151491,8.15926729,238.73,238.67,4.99997218]
[1733640151816,8.15926729,238.71,238.67,4.99997218]
[1733640156190,8.15926729,238.72,238.67,4.99997218]
[1733640158511,8.15926729,238.71,238.67,4.99997218]
[1733640163322,0.25098,238.74,238.65,4.99997218]
[1733640163323,8.15926729,238.7,238.65,4.99997218]
[1733640163935,8.15926729,238.7,238.67,4.99997218]
[1733640165495,8.15926729,238.71,238.67,4.99997218]
[1733640167620,8.15926729,238.71,238.65,4.99997218]
[1733640167807,8.15926729,238.7,238.65,4.99997218]
[1733640171329,8.15926729,238.69,238.65,4.99997218]
[1733640171532,8.15926729,238.66,238.63,4.99997218]
[1733640171730,8.15926729,238.66,238.61,4.99997218]
[1733640175337,8.15926729,238.65,238.61,4.99997218]
[1733640179713,8.15926729,238.66,238.61,4.99997218]
[1733640180735,31.4148,238.74,238.59,4.99997218]
[1733640180736,8.15926729,238.64,238.59,4.99997218]
[1733640180922,8.15926729,238.64,238.61,4.99997218]
[1733640181528,8.15926729,238.65,238.59,4.99997218]
[1733640181927,8.15926729,238.64,238.59,4.99997218]
[1733640186819,8.15926729,238.63,238.59,4.99997218]
[1733640189335,8.15926729,238.6,238.53,4.99997218]
[1733640189539,8.15926729,238.56,238.53,4.99997218]
[1733640189741,8.15926729,238.57,238.53,4.99997218]
[1733640190657,8.15926729,238.56,238.52,7.8697]
[1733640190861,8.15926729,238.56,238.53,4.99997218]
[1733640191155,8.15926729,238.57,238.53,4.99997218]
[1733640191332,8.15926729,238.57,238.52,7.8697]
[1733640191538,8.15926729,238.57,238.53,4.99997218]
[1733640193831,8.15926729,238.55,238.52,1.649]
[1733640196434,8.15926729,238.54,238.52,1.649]
[1733640196763,8.15926729,238.55,238.52,1.649]
[1733640199462,31.93615129,238.56,238.52,1.649]
[1733640200555,8.15926729,238.55,238.52,1.649]
[1733640200866,23.776884,238.56,238.52,1.649]
[1733640201356,8.15926729,238.55,238.52,1.649]
[1733640204471,0.12549,238.61,238.52,1.649]
[1733640204759,8.15926729,238.56,238.52,1.649]
[1733640208565,8.15926729,238.55,238.52,1.649]
[1733640211159,8.15926729,238.54,238.52,1.649]
[1733640211668,8.15926729,238.53,238.47,11.57297218]
[1733640211867,8.15926729,238.51,238.47,11.57297218]
[1733640216774,8.15926729,238.48,238.45,1.5443]
[1733640217142,10.4799,238.55,238.45,1.5443]
[1733640217143,8.15926729,238.5,238.45,6.54427218]
[1733640217349,23.776884,238.54,238.47,4.99997218]
[1733640217547,31.93615129,238.54,238.47,13.15923947]
[1733640218769,8.15926729,238.53,238.47,13.15923947]
[1733640218970,8.15926729,238.52,238.47,4.99997218]
[1733640219136,8.15926729,238.51,238.47,4.99997218]
[1733640219570,8.15926729,238.5,238.45,6.54427218]
[1733640220439,10.4814,238.52,238.45,6.54427218]
[1733640220645,8.15926729,238.49,238.45,1.5443]
[1733640221350,8.15926729,238.48,238.45,1.5443]
[1733640221864,8.15926729,238.46,238.43,4.99997218]
[1733640222341,8.15926729,238.46,238.41,4.99997218]
[1733640224348,8.15926729,238.45,238.41,4.99997218]
[1733640225173,8.15926729,238.44,238.41,4.99997218]
[1733640225374,8.15926729,238.43,238.4,6.4392]
[1733640226258,8.15926729,238.41,238.39,1.5027]
[1733640226448,8.15926729,238.4,238.36,4.99997218]
[1733640226649,8.15926729,238.39,238.36,4.99997218]
[1733640226980,8.15926729,238.4,238.36,4.99997218]
[1733640227150,8.15926729,238.39,238.34,11.20927218]
[1733640227879,8.15926729,238.41,238.36,4.99997218]
[1733640230258,8.28475729,238.41,238.36,4.99997218]
[1733640230658,8.15926729,238.4,238.36,4.99997218]
[1733640231883,8.28475729,238.41,238.36,4.99997218]
[1733640232060,10.4852,238.43,238.38,4.99997218]
[1733640232257,8.15926729,238.44,238.38,4.99997218]
[1733640232469,8.15926729,238.45,238.38,13.15923947]
[1733640233382,8.15926729,238.45,238.4,4.99997218]
[1733640233878,18.64226729,238.48,238.42,13.15923947]
[1733640234065,8.15926729,238.49,238.42,13.15923947]
[1733640234266,8.15926729,238.5,238.44,4.99997218]
[1733640234585,8.15926729,238.51,238.44,13.15923947]
[1733640234882,8.15926729,238.51,238.46,4.99997218]
[1733640235577,8.15926729,238.49,238.44,4.99997218]
[1733640235765,10.4816,238.52,238.42,14.66056729]
[1733640235766,8.15926729,238.47,238.42,11.50127218]
[1733640236166,8.15926729,238.45,238.42,11.50127218]
[1733640236369,0.12549,238.48,238.41,1.6383]
[1733640236574,8.15926729,238.45,238.41,1.6383]
[1733640238287,8.15926729,238.46,238.41,1.6383]
[1733640239171,8.15926729,238.45,238.41,1.6383]
[1733640241287,8.15926729,238.44,238.41,1.6383]
[1733640241984,8.15926729,238.43,238.41,1.6383]
[1733640242281,0.12549,238.47,238.38,4.99997218]
[1733640242282,8.15926729,238.42,238.38,4.99997218]
[1733640242489,8.15926729,238.4,238.38,4.99997218]
[1733640244206,8.15926729,238.41,238.38,4.99997218]
[1733640251489,8.15926729,238.41,238.36,11.50127218]
[1733640251789,8.15926729,238.41,238.38,4.99997218]
[1733640252365,8.15926729,238.42,238.38,4.99997218]
[1733640252567,8.15926729,238.44,238.4,4.99997218]
[1733640253102,8.15926729,238.44,238.42,4.99997218]
[1733640257585,8.15926729,238.45,238.42,4.99997218]
[1733640258103,8.15926729,238.46,238.42,4.99997218]
[1733640258391,18.64186729,238.5,238.47,4.99997218]
[1733640260365,18.64186729,238.5,238.45,4.99997218]
[1733640260366,0.12549,238.5,238.45,4.99997218]
[1733640260673,8.15926729,238.46,238.43,4.99997218]
[1733640261079,8.15926729,238.47,238.43,4.99997218]
[1733640261782,10.4823,238.5,238.46,4.99997218]
[1733640262100,8.15926729,238.49,238.46,4.99997218]
[1733640263092,10.4823,238.5,238.46,4.99997218]
[1733640263490,8.15926729,238.52,238.48,4.99997218]
[1733640266978,8.15926729,238.51,238.48,4.99997218]
[1733640268006,0.25098,238.53,238.48,4.99997218]
[1733640268007,8.15926729,238.5,238.48,4.99997218]
[1733640268303,8.15926729,238.49,238.48,4.99997218]
[1733640270502,8.15926729,238.49,238.45,1.5]
[1733640270711,8.15926729,238.46,238.44,4.99997218]
[1733640270895,8.15926729,238.45,238.44,4.99997218]
[1733640271788,8.15926729,238.45,238.42,4.99997218]
[1733640272193,8.15926729,238.44,238.42,4.99997218]
[1733640272578,8.15926729,238.44,238.4,6.49997218]
[1733640272900,8.15926729,238.41,238.4,4.99997218]
[1733640275290,8.15926729,238.41,238.38,4.99997218]
[1733640275594,8.15926729,238.4,238.38,4.99997218]
[1733640277107,10.4846,238.45,238.4,4.99997218]
[1733640277292,8.15926729,238.41,238.4,4.99997218]
[1733640277885,8.28475729,238.41,238.36,4.99997218]
[1733640278081,8.15926729,238.38,238.36,4.99997218]
[1733640278313,8.15926729,238.39,238.36,4.99997218]
[1733640278514,8.15926729,238.4,238.36,4.99997218]
[1733640279589,8.15926729,238.39,238.36,4.99997218]
[1733640280293,8.15926729,238.4,238.36,4.99997218]
[1733640281913,8.28475729,238.41,238.36,4.99997218]
[1733640282096,8.15926729,238.42,238.38,4.99997218]
[1733640282611,8.15926729,238.44,238.4,4.99997218]
[1733640283515,8.15926729,238.45,238.4,4.99997218]
[1733640283754,20.9634,238.51,238.4,4.99997218]
[1733640283755,8.15926729,238.44,238.4,4.99997218]
[1733640284013,0.12549,238.46,238.4,4.99997218]
[1733640284193,8.15926729,238.45,238.4,4.99997218]
[1733640286815,8.15926729,238.44,238.4,4.99997218]
[1733640288628,8.15926729,238.43,238.4,4.99997218]
[1733640292708,8.15926729,238.44,238.4,4.99997218]
[1733640292929,8.15926729,238.43,238.4,4.99997218]
[1733640293627,8.15926729,238.45,238.42,4.99997218]
[1733640293931,18.64296729,238.47,238.42,4.99997218]
[1733640295336,10.4819,238.51,238.44,4.99997218]
[1733640295507,8.15926729,238.48,238.44,4.99997218]
[1733640299313,24.027864,238.5,238.44,4.99997218]
[1733640299514,8.15926729,238.49,238.44,4.99997218]
[1733640300126,20.0,238.52,238.47,4.99997218]
[1733640300713,8.15926729,238.51,238.47,4.99997218]
[1733640301410,8.15926729,238.5,238.47,4.99997218]
[1733640301832,8.15926729,238.49,238.47,4.99997218]
[1733640302044,8.15926729,238.48,238.45,4.99997218]
[1733640302224,8.15926729,238.46,238.41,6.58837218]
[1733640302428,8.15926729,238.45,238.41,6.58837218]
[1733640304014,8.15926729,238.42,238.41,4.99997218]
[1733640304848,8.15926729,238.42,238.39,4.99997218]
[1733640306522,8.15926729,238.43,238.39,4.99997218]
[1733640306846,8.15926729,238.44,238.39,4.99997218]
[1733640309530,0.12549,238.46,238.39,4.99997218]
[1733640309733,23.776884,238.44,238.39,4.99997218]
[1733640310232,8.15926729,238.45,238.39,4.99997218]
[1733640310550,18.64286729,238.47,238.43,4.99997218]
[1733640312242,26.98936619,238.53,238.43,4.99997218]
[1733640312243,1.65640718,238.54,238.43,4.99997218]
[1733640312443,23.776884,238.5,238.43,4.99997218]
[1733640312646,8.15926729,238.47,238.43,4.99997218]
[1733640316759,8.15926729,238.46,238.43,4.99997218]
[1733640317359,8.15926729,238.44,238.41,4.99997218]
[1733640317530,8.15926729,238.43,238.41,4.99997218]
[1733640319157,8.15926729,238.44,238.41,4.99997218]
[1733640320860,8.15926729,238.45,238.41,4.99997218]
[1733640321831,8.15926729,238.47,238.43,4.99997218]
[1733640322660,8.15926729,238.46,238.43,4.99997218]
[1733640323553,8.15926729,238.47,238.43,4.99997218]
[1733640323856,10.4832,238.48,238.39,4.99997218]
[1733640323857,8.15926729,238.44,238.39,4.99997218]
[1733640324027,23.902374,238.46,238.36,1.5884]
[1733640324028,8.15926729,238.4,238.37,4.99997218]
[1733640324841,8.15926729,238.39,238.37,4.99997218]
[1733640326561,8.15926729,238.4,238.37,4.99997218]
[1733640329256,8.15926729,238.38,238.37,4.99997218]
[1733640329651,8.15926729,238.39,238.37,4.99997218]
[1733640331675,8.15926729,238.38,238.37,4.99997218]
[1733640334448,8.15926729,238.38,238.36,1.5884]
[1733640334645,8.15926729,238.37,238.35,4.99997218]
[1733640334848,8.15926729,238.36,238.35,4.99997218]
[1733640336955,8.15926729,238.36,238.33,4.99997218]
[1733640337281,8.15926729,238.34,238.33,4.99997218]
[1733640340080,8.15926729,238.35,238.33,4.99997218]
[1733640343375,8.15926729,238.34,238.31,4.99997218]
[1733640343685,8.15926729,238.33,238.31,4.99997218]
[1733640345262,8.15926729,238.33,238.29,4.99997218]
[1733640345479,8.15926729,238.32,238.29,4.99997218]
[1733640348062,8.15926729,238.31,238.29,4.99997218]
[1733640348261,23.776884,238.34,238.29,4.99997218]
[1733640348590,8.15926729,238.31,238.29,4.99997218]
[1733640349265,8.15926729,238.31,238.27,4.99997218]
[1733640351192,8.15926729,238.3,238.27,4.99997218]
[1733640351495,8.15926729,238.28,238.27,4.99997218]
[1733640353995,23.776884,238.27,238.21,4.99997218]
[1733640354205,8.15926729,238.23,238.21,4.99997218]
[1733640354378,23.776884,238.27,238.21,4.99997218]
[1733640354379,8.15926729,238.24,238.21,4.99997218]
[1733640354580,8.15926729,238.25,238.21,4.99997218]
[1733640354773,8.15926729,238.29,238.25,4.99997218]
[1733640355876,10.4906,238.31,238.25,4.99997218]
[1733640355877,8.15926729,238.28,238.25,4.99997218]
[1733640356083,8.15926729,238.26,238.23,4.99997218]
[1733640356397,8.15926729,238.25,238.23,4.99997218]
[1733640360484,8.15926729,238.24,238.23,4.99997218]
[1733640362994,8.15926729,238.24,238.21,4.99997218]
[1733640363683,8.15926729,238.23,238.21,4.99997218]
[1733640363881,10.4919,238.28,238.23,4.99997218]
[1733640364088,8.15926729,238.27,238.25,4.99997218]
[1733640364300,8.15926729,238.26,238.25,4.99997218]
[1733640366091,28.51046619,238.35,238.25,4.99997218]
[1733640366279,8.15926729,238.29,238.25,4.99997218]
[1733640366478,8.15926729,238.27,238.25,4.99997218]
[1733640366691,8.15926729,238.26,238.25,4.99997218]
[1733640367206,8.15926729,238.26,238.23,4.99997218]
[1733640367380,8.15926729,238.24,238.23,4.99997218]
[1733640368500,8.15926729,238.24,238.21,4.99997218]
[1733640368802,8.15926729,238.22,238.21,4.99997218]
[1733640369098,8.15926729,238.22,238.19,4.99997218]
[1733640369291,8.15926729,238.2,238.19,4.99997218]
[1733640370320,8.15926729,238.2,238.17,4.99997218]
[1733640370493,8.15926729,238.19,238.17,4.99997218]
[1733640373407,31.93615129,238.18,238.13,4.99997218]
[1733640373601,8.15926729,238.14,238.13,4.99997218]
[1733640373924,8.15926729,238.19,238.17,4.99997218]
[1733640374219,10.4936,238.24,238.17,4.99997218]
[1733640374220,8.15926729,238.2,238.17,4.99997218]
[1733640374594,8.15926729,238.21,238.19,4.99997218]
[1733640375596,8.15926729,238.23,238.19,4.99997218]
[1733640375799,8.15926729,238.24,238.21,4.99997218]
[1733640377110,8.15926729,238.24,238.23,4.99997218]
[1733640377709,23.776884,238.27,238.23,4.99997218]
[1733640377710,8.15926729,238.25,238.23,4.99997218]
[1733640378982,10.4918,238.28,238.26,4.99997218]
[1733640379211,18.65106729,238.28,238.26,4.99997218]
[1733640379409,10.4918,238.28,238.26,4.99997218]
[1733640379593,8.15926729,238.27,238.26,4.99997218]
[1733640379996,9.79950124,238.36,238.26,4.99997218]
[1733640380197,8.15926729,238.28,238.26,4.99997218]
[1733640380715,8.15926729,238.27,238.26,4.99997218]
[1733640381605,10.4906,238.31,238.28,4.99997218]
[1733640381906,10.4906,238.31,238.25,8.15926729]
[1733640381907,8.15926729,238.34,238.32,4.99997218]
[1733640382308,8.15926729,238.33,238.32,4.99997218]
[1733640384320,0.25098,238.38,238.32,4.99997218]
[1733640384529,0.25098,238.38,238.22,6.2721]
[1733640384530,8.15926729,238.36,238.34,4.99997218]
[1733640384834,8.15926729,238.37,238.34,4.99997218]
[1733640386418,8.15926729,238.36,238.34,4.99997218]
[1733640386722,20.0,238.4,238.34,4.99997218]
[1733640386893,8.15926729,238.35,238.34,4.99997218]
[1733640387606,8.15926729,238.36,238.34,4.99997218]
[1733640388402,8.15926729,238.37,238.34,4.99997218]
[1733640388619,8.15926729,238.37,238.36,4.99997218]
[1733640388792,8.15926729,238.38,238.36,4.99997218]
[1733640390326,32.63706916,238.44,238.39,4.99997218]
[1733640390327,23.776884,238.43,238.39,4.99997218]
[1733640390620,8.15926729,238.4,238.39,4.99997218]
[1733640392206,8.15926729,238.4,238.37,4.99997218]
[1733640392397,8.15926729,238.38,238.37,4.99997218]
[1733640394217,8.15926729,238.38,238.35,4.99997218]
[1733640394421,8.15926729,238.36,238.35,4.99997218]
[1733640397528,8.15926729,238.4,238.39,4.99997218]
[1733640397713,31.93615129,238.4,238.39,4.99997218]
[1733640399104,8.15926729,238.41,238.39,4.99997218]
[1733640399304,8.15926729,238.42,238.41,4.99997218]
[1733640399514,31.93615129,238.42,238.41,4.99997218]
[1733640400507,23.776884,238.42,238.41,4.99997218]
[1733640400709,8.15926729,238.43,238.41,4.99997218]
[1733640401216,20.0,238.49,238.45,4.99997218]
[1733640401526,8.15926729,238.46,238.45,4.99997218]